bitfinex/quotes_SOLUSD_20220216
["timestamp","ask_amount","ask_price","bid_price","bid_amount"]
[1645025427013,100.7,99.339,99.253,22.5319]
[1645025427216,2.50588295,99.338,99.253,22.5319]
[1645025427914,2.50588295,99.338,99.25,15.1091]
[1645025428617,2.50588295,99.338,99.211,47.6226]
[1645025428618,100.7,99.329,99.211,47.6226]
[1645025428816,100.7,99.319,99.211,47.6226]
[1645025429464,2.50588295,99.318,99.211,47.6226]
[1645025429622,100.7,99.309,99.211,47.6226]
[1645025429819,100.7,99.299,99.22,15.1136]
[1645025431819,15.1149,99.28,99.22,15.1136]
[1645025432218,100.7,99.299,99.22,15.1136]
[1645025432718,23.8747,99.309,99.221,2.3986017]
[1645025433121,15.1101,99.31,99.24,15.1101]
[1645025433321,14.56,99.32,99.24,15.1101]
[1645025433519,14.56,99.32,99.241,24.5087]
[1645025433721,102.11102918,99.333,99.241,24.5087]
[1645025434119,50.3618,99.35,99.25,15.108]
[1645025434120,1.41102918,99.338,99.25,15.108]
[1645025434321,1.41102918,99.347,99.251,100.7]
[1645025434521,23.7625,99.354,99.252,23.3391]
[1645025434719,0.25,99.337,99.252,23.3391]
[1645025434923,0.25,99.337,99.252,25.7377017]
[1645025435119,0.25,99.337,99.253,25.7736017]
[1645025435520,0.25,99.337,99.254,2.3986017]
[1645025435723,23.7625,99.354,99.254,103.0986017]
[1645025435924,0.25,99.344,99.28,15.1039]
[1645025436122,0.25,99.344,99.281,23.2444]
[1645025436524,15.104,99.35,99.281,23.2444]
[1645025437425,100.7,99.349,99.281,23.2444]
[1645025437625,15.1056,99.34,99.281,23.2444]
[1645025438428,15.1056,99.34,99.252,23.3391]
[1645025438629,15.1096,99.32,99.253,24.8296]
[1645025438829,100.7,99.319,99.253,24.8296]
[1645025439130,6.04,99.324,99.253,24.8296]
[1645025439528,100.7,99.323,99.253,24.8296]
[1645025439930,15.1104,99.31,99.253,24.8296]
[1645025440128,100.7,99.309,99.253,24.8296]
[1645025441334,15.1093,99.31,99.253,24.8296]
[1645025442132,1.41102918,99.333,99.253,24.8296]
[1645025442333,0.25,99.323,99.253,24.8296]
[1645025442938,1.41102918,99.346,99.254,100.7]
[1645025443138,0.25,99.335,99.261,100.7]
[1645025443735,0.25,99.335,99.254,2.3986017]
[1645025444561,1.41102918,99.357,99.28,15.1038]
[1645025444760,1.41102918,99.367,99.282,100.7]
[1645025444963,1.41102918,99.371,99.282,100.7]
[1645025445361,1.41102918,99.373,99.282,100.7]
[1645025445562,1.41102918,99.375,99.282,100.7]
[1645025445761,1.41102918,99.376,99.3,15.0994]
[1645025445961,0.25,99.354,99.301,24.2841]
[1645025450967,15.1034,99.35,99.301,24.2841]
[1645025452166,100.7,99.349,99.252,23.3391]
[1645025452366,100.7,99.349,99.26,15.1049]
[1645025452567,15.1052,99.34,99.26,15.1049]
[1645025454969,100.7,99.329,99.26,15.1049]
[1645025455171,100.7,99.329,99.255,23.0338]
[1645025455370,105.98,99.329,99.255,23.0338]
[1645025456672,100.7,99.329,99.255,23.0338]
[1645025456872,15.1077,99.32,99.255,23.0338]
[1645025459372,100.7,99.319,99.255,23.0338]
[1645025459577,100.7,99.309,99.255,23.0338]
[1645025460182,100.7,99.309,99.2,60.89009076]
[1645025460381,100.7,99.309,99.229,24.0539]
[1645025461386,100.7,99.299,99.202,24.3158]
[1645025461683,100.7,99.289,99.202,24.3158]
[1645025461984,106.13,99.289,99.202,24.3158]
[1645025462383,100.7,99.279,99.202,24.3158]
[1645025463209,64.9492,99.29,99.202,24.3158]
[1645025463387,64.9492,99.29,99.203,2.3986017]
[1645025463587,15.1135,99.29,99.203,2.3986017]
[1645025464085,1.41102918,99.326,99.203,2.3986017]
[1645025464285,3.08206694,99.354,99.206,100.7]
[1645025464286,14.56,99.32,99.206,100.7]
[1645025464487,14.56,99.32,99.204,60.25]
[1645025464488,14.56,99.33,99.21,75.3631]
[1645025464685,15.1061,99.34,99.221,100.7]
[1645025464985,15.1061,99.34,99.22,14.56]
[1645025464986,15.1061,99.34,99.223,100.7]
[1645025465589,15.1061,99.34,99.224,26.4288017]
[1645025465800,100.7,99.339,99.25,15.1057]
[1645025465997,15.1073,99.33,99.251,24.2582]
[1645025466796,1.41102918,99.351,99.252,103.0986017]
[1645025467000,1.41102918,99.351,99.26,15.1052]
[1645025467200,1.41102918,99.356,99.26,15.1052]
[1645025467598,15.1048,99.34,99.261,2.3986017]
[1645025467797,26.33802918,99.359,99.261,2.3986017]
[1645025468199,24.927,99.359,99.261,2.3986017]
[1645025468398,26.33802918,99.359,99.261,2.3986017]
[1645025468597,24.927,99.359,99.261,2.3986017]
[1645025468797,0.25,99.349,99.27,15.1036]
[1645025468997,0.25,99.349,99.271,24.0801]
[1645025471134,100.95,99.349,99.271,24.0801]
[1645025471337,15.1052,99.34,99.271,24.0801]
[1645025472935,15.103,99.36,99.271,24.0801]
[1645025473135,0.67766656,99.362,99.272,62.6486017]
[1645025473737,0.67766656,99.362,99.281,100.7]
[1645025473938,0.67766656,99.362,99.301,100.7]
[1645025474243,0.67766656,99.362,99.302,123.2574]
[1645025475438,0.67766656,99.362,99.302,22.5574]
[1645025480848,0.25,99.354,99.302,22.5574]
[1645025481249,0.67766656,99.362,99.302,22.5574]
[1645025483254,0.67766656,99.362,99.302,128.3874]
[1645025483453,0.67766656,99.362,99.311,100.7]
[1645025483653,0.67766656,99.362,99.302,27.6874]
[1645025484153,0.67766656,99.362,99.302,128.3874]
[1645025484354,0.67766656,99.362,99.302,27.6874]
[1645025484556,0.67766656,99.362,99.302,22.5574]
[1645025486156,0.25,99.354,99.302,22.5574]
[1645025486358,0.25,99.354,99.22,4.86659781]
[1645025486560,0.25,99.354,99.241,23.9103]
[1645025487060,15.1038,99.35,99.25,15.1057]
[1645025487261,0.25,99.354,99.251,160.95]
[1645025487463,0.25,99.354,99.253,160.95]
[1645025488160,0.25,99.354,99.254,2.3986017]
[1645025488961,0.25,99.354,99.28,15.1005]
[1645025489162,0.25,99.354,99.281,24.4041]
[1645025489981,15.1032,99.35,99.281,24.4041]
[1645025491888,0.25,99.34,99.281,24.4041]
[1645025492084,15.3548,99.34,99.281,24.4041]
[1645025492486,15.3548,99.34,99.243,2.3986017]
[1645025492686,15.3548,99.34,99.22,55.21879781]
[1645025492687,100.7,99.339,99.221,24.1759]
[1645025493387,100.7,99.339,99.222,100.7]
[1645025493687,23.8762,99.338,99.224,100.7]
[1645025493886,23.8762,99.338,99.223,63.33245293]
[1645025493887,15.1091,99.32,99.231,100.7]
[1645025494486,15.1091,99.32,99.231,103.0986017]
[1645025494689,15.8762,99.338,99.231,103.0986017]
[1645025494886,15.8762,99.338,99.235,100.7]
[1645025495089,15.8762,99.338,99.235,150.77]
[1645025495287,15.8762,99.338,99.236,2.3986017]
[1645025495489,15.8762,99.338,99.238,50.07]
[1645025495688,15.8762,99.338,99.239,100.7]
[1645025495886,15.8762,99.338,99.241,100.7]
[1645025496286,15.8762,99.338,99.242,50.07]
[1645025496488,15.8762,99.338,99.243,150.77]
[1645025496687,15.8762,99.338,99.242,2.3986017]
[1645025496688,1.41102918,99.356,99.247,100.7]
[1645025496889,0.25,99.346,99.27,15.1025]
[1645025497086,0.25,99.346,99.271,22.9377]
[1645025497888,15.1035,99.35,99.271,22.9377]
[1645025499389,0.25,99.34,99.271,22.9377]
[1645025499696,15.3558,99.34,99.271,22.9377]
[1645025502990,15.1035,99.35,99.271,22.9377]
[1645025505892,24.1048,99.359,99.271,22.9377]
[1645025506092,24.1048,99.359,99.272,100.7]
[1645025506290,0.25,99.349,99.271,22.9377]
[1645025507292,24.1048,99.359,99.271,22.9377]
[1645025507494,24.1048,99.359,99.272,100.7]
[1645025507694,0.67766656,99.362,99.272,100.7]
[1645025507896,0.25,99.354,99.272,100.7]
[1645025508094,0.25,99.354,99.281,100.7]
[1645025508396,0.25,99.354,99.281,156.78112993]
[1645025508595,0.67766656,99.362,99.285,100.7]
[1645025508796,0.67766656,99.362,99.291,100.7]
[1645025508995,0.67766656,99.362,99.292,230.41232993]
[1645025509195,0.67766656,99.362,99.293,56.08112993]
[1645025509394,0.67766656,99.362,99.294,100.7]
[1645025509995,0.67766656,99.362,99.301,100.7]
[1645025510398,0.67766656,99.362,99.295,2.3986017]
[1645025511397,0.67766656,99.362,99.3,100.7]
[1645025511797,0.67766656,99.362,99.31,15.0961]
[1645025511996,0.67766656,99.362,99.311,23.3076]
[1645025512802,0.25,99.354,99.311,23.3076]
[1645025513201,0.25,99.354,99.301,56.08112993]
[1645025513501,0.67766656,99.362,99.301,56.08112993]
[1645025513702,0.25,99.354,99.301,56.08112993]
[1645025513901,0.67766656,99.362,99.301,56.08112993]
[1645025514302,0.25,99.354,99.301,56.08112993]
[1645025514500,0.67766656,99.362,99.301,56.08112993]
[1645025514702,0.25,99.354,99.301,56.08112993]
[1645025515105,0.67766656,99.362,99.301,56.08112993]
[1645025515507,0.25,99.354,99.301,56.08112993]
[1645025515703,0.67766656,99.362,99.301,56.08112993]
[1645025516305,0.25,99.354,99.301,56.08112993]
[1645025516502,0.67766656,99.362,99.301,56.08112993]
[1645025516702,0.25,99.354,99.301,56.08112993]
[1645025520412,100.7,99.349,99.302,2.53164557]
[1645025520808,1.41102918,99.348,99.262,22.5974]
[1645025521208,1.41102918,99.345,99.262,22.5974]
[1645025521409,1.41102918,99.346,99.262,22.5974]
[1645025521609,1.41102918,99.345,99.262,22.5974]
[1645025521809,15.106,99.34,99.262,22.5974]
[1645025522610,15.106,99.34,99.251,23.2522]
[1645025522611,100.7,99.339,99.251,23.2522]
[1645025522811,15.1094,99.32,99.251,23.2522]
[1645025523318,15.1094,99.32,99.232,24.7467]
[1645025523513,103.20588295,99.319,99.232,24.7467]
[1645025523913,15.1112,99.3,99.232,24.7467]
[1645025524113,1.41102918,99.323,99.232,24.7467]
[1645025524310,1.41102918,99.321,99.232,24.7467]
[1645025524712,1.41102918,99.33,99.232,24.7467]
[1645025525414,1.41102918,99.332,99.232,24.7467]
[1645025525610,1.41102918,99.331,99.232,24.7467]
[1645025525812,15.1091,99.32,99.232,24.7467]
[1645025526013,100.7,99.319,99.232,24.7467]
[1645025527112,100.7,99.309,99.232,24.7467]
[1645025527315,100.7,99.309,99.193,2.3986017]
[1645025527515,100.7,99.309,99.199,22.8405]
[1645025527714,100.7,99.298,99.199,22.8405]
[1645025528518,100.7,99.289,99.199,22.8405]
[1645025529114,22.7169,99.297,99.199,22.8405]
[1645025529318,100.7,99.296,99.199,22.8405]
[1645025530019,100.7,99.279,99.199,22.8405]
[1645025530217,100.7,99.279,99.172,5.26484164]
[1645025530418,2.50588295,99.278,99.172,5.26484164]
[1645025530618,2.50588295,99.278,99.16,14.56]
[1645025531046,100.7,99.269,99.163,124.1859]
[1645025531246,100.7,99.269,99.164,50.07]
[1645025531446,100.7,99.269,99.168,14.7886]
[1645025531752,100.7,99.279,99.169,100.7]
[1645025531947,100.7,99.279,99.168,14.7886]
[1645025531948,2.50588295,99.293,99.187,8.1296734]
[1645025532747,2.50588295,99.293,99.188,47.0196]
[1645025532948,15.1157,99.27,99.188,47.0196]
[1645025533248,15.1157,99.27,99.189,103.0986017]
[1645025533552,24.3857,99.296,99.191,100.7]
[1645025533950,24.3857,99.296,99.192,2.3986017]
[1645025534450,100.7,99.295,99.192,2.3986017]
[1645025534650,15.1126,99.29,99.192,2.3986017]
[1645025535653,15.1126,99.29,99.192,153.1686017]
[1645025535851,15.1126,99.29,99.201,100.7]
[1645025536250,15.1126,99.29,99.2,15.1121]
[1645025536251,15.1126,99.29,99.203,100.7]
[1645025536453,15.1126,99.29,99.202,24.6349]
[1645025536656,0.25,99.28,99.202,24.6349]
[1645025536855,15.1157,99.27,99.202,24.6349]
[1645025538455,100.7,99.269,99.202,24.6349]
[1645025538657,15.1171,99.26,99.202,24.6349]
[1645025542462,15.1155,99.27,99.202,24.6349]
[1645025542661,0.25,99.28,99.202,24.6349]
[1645025543660,24.161,99.282,99.202,24.6349]
[1645025544868,100.7,99.279,99.202,24.6349]
[1645025545265,103.20588295,99.279,99.202,24.6349]
[1645025545869,0.25,99.269,99.202,24.6349]
[1645025548169,15.1169,99.26,99.202,24.6349]
[1645025549170,15.1169,99.26,99.163,150.77]
[1645025549171,100.7,99.259,99.163,50.07]
[1645025549370,100.7,99.239,99.164,23.3338]
[1645025550971,15.1218,99.23,99.164,23.3338]
[1645025552376,100.7,99.229,99.144,22.6909]
[1645025552576,15.1233,99.22,99.144,22.6909]
[1645025553376,50.4151,99.24,99.144,22.6909]
[1645025553679,21.1244,99.23,99.144,22.6909]
[1645025554280,100.7,99.229,99.144,22.6909]
[1645025554477,103.20588295,99.229,99.144,22.6909]
[1645025554680,2.50588295,99.228,99.144,22.6909]
[1645025554879,100.7,99.219,99.144,22.6909]
[1645025555678,100.7,99.219,99.119,15.3866]
[1645025555880,6.0,99.23,99.111,50.07]
[1645025555881,100.7,99.209,99.111,50.07]
[1645025556080,100.7,99.209,99.107,15.2086]
[1645025556280,100.7,99.209,99.101,23.6866]
[1645025556281,100.7,99.207,99.101,23.6866]
[1645025556680,2.50588295,99.206,99.101,23.6866]
[1645025556882,24.8086,99.208,99.102,100.7]
[1645025557106,24.8086,99.208,99.102,109.0186017]
[1645025557304,24.8086,99.208,99.104,100.7]
[1645025557508,24.8086,99.208,99.104,150.77]
[1645025557707,24.8086,99.208,99.105,2.3986017]
[1645025557905,15.1246,99.21,99.11,15.1259]
[1645025558105,15.1246,99.21,99.111,100.7]
[1645025558306,15.1246,99.21,99.111,103.0986017]
[1645025558704,15.1246,99.21,99.112,2.3986017]
[1645025559306,0.25,99.2,99.113,100.7]
[1645025559508,0.25,99.2,99.114,50.07]
[1645025560005,0.25,99.2,99.12,15.1247]
[1645025560207,0.25,99.2,99.121,22.6463]
[1645025563413,15.3768,99.2,99.121,22.6463]
[1645025571323,100.7,99.199,99.121,22.6463]
[1645025571522,15.1279,99.19,99.121,22.6463]
[1645025573930,100.7,99.189,99.121,22.6463]
[1645025574127,15.1279,99.19,99.121,22.6463]
[1645025574627,100.7,99.189,99.121,22.6463]
[1645025575026,100.7,99.179,99.121,22.6463]
[1645025576231,15.1311,99.17,99.087,50.07]
[1645025576429,100.7,99.169,99.093,23.2509]
[1645025577030,2.50588295,99.168,99.093,23.2509]
[1645025578731,15.1333,99.16,99.04,14.56]
[1645025578931,100.7,99.149,99.041,73.5557]
[1645025579131,100.7,99.149,99.041,23.4857]
[1645025579333,1.41102918,99.148,99.041,23.4857]
[1645025579538,3.91691213,99.148,99.041,23.4857]
[1645025579730,2.50588295,99.147,99.041,23.4857]
[1645025579935,100.7,99.129,99.041,23.4857]
[1645025580332,100.7,99.129,99.042,2.3986017]
[1645025580738,14.56,99.13,99.042,103.0986017]
[1645025580935,17.06588295,99.16,99.042,109.1686017]
[1645025581132,14.56,99.16,99.043,2.3986017]
[1645025581733,100.7,99.159,99.043,2.3986017]
[1645025582035,15.1353,99.14,99.05,15.1353]
[1645025582434,100.7,99.139,99.051,2.40485482]
[1645025582632,15.1353,99.14,99.05,15.1353]
[1645025583259,15.1353,99.14,99.051,2.40485482]
[1645025583663,15.1353,99.14,99.051,100.7]
[1645025583861,15.1339,99.15,99.061,100.7]
[1645025584057,15.1339,99.15,99.062,24.1215]
[1645025584258,50.4448,99.18,99.063,100.7]
[1645025584457,1.41102918,99.197,99.063,100.7]
[1645025584458,14.56,99.19,99.064,24.0442]
[1645025584657,14.56,99.2,99.066,50.07]
[1645025584857,100.7,99.197,99.066,50.07]
[1645025585261,100.7,99.197,99.067,2.40485482]
[1645025585659,100.7,99.197,99.069,100.7]
[1645025585861,15.1321,99.17,99.074,50.07]
[1645025586061,100.7,99.197,99.077,100.7]
[1645025586261,100.7,99.197,99.078,22.7352]
[1645025586461,100.7,99.197,99.08,14.56]
[1645025586961,15.129,99.19,99.08,29.6898]
[1645025587161,100.7,99.189,99.08,29.6898]
[1645025587564,100.7,99.189,99.081,100.7]
[1645025587766,0.25,99.179,99.08,14.56]
[1645025587963,0.25,99.179,99.09,15.1284]
[1645025588162,0.25,99.179,99.08,14.56]
[1645025589167,15.1308,99.17,99.08,14.56]
[1645025589364,15.1308,99.17,99.081,0.72470001]
[1645025589565,100.7,99.169,99.081,0.72470001]
[1645025591968,15.136,99.15,99.081,0.72470001]
[1645025592568,15.136,99.15,99.079,0.72470001]
[1645025593168,100.7,99.149,99.079,0.72470001]
[1645025593367,15.1355,99.14,99.079,0.72470001]
[1645025596172,15.1338,99.15,99.079,0.72470001]
[1645025596372,100.7,99.174,99.079,0.72470001]
[1645025597070,0.25,99.179,99.079,0.72470001]
[1645025597271,0.25,99.179,99.08,15.131]
[1645025597875,0.25,99.179,99.081,101.42470001]
[1645025598072,0.25,99.179,99.081,108.17470001]
[1645025598279,182.31074683,99.298,99.091,100.7]
[1645025598280,1.41102918,99.213,99.091,100.7]
[1645025598476,1.41102918,99.218,99.093,100.7]
[1645025598776,64.984,99.22,99.101,100.7]
[1645025598777,14.56,99.22,99.101,100.7]
[1645025598975,14.56,99.22,99.105,100.7]
[1645025599174,14.56,99.22,99.109,100.7]
[1645025599373,100.7,99.219,99.11,50.07]
[1645025599575,100.7,99.219,99.11,52.47485482]
[1645025599977,15.126,99.21,99.13,15.1233]
[1645025600176,15.126,99.21,99.13,22.4133]
[1645025600876,14.56,99.23,99.13,22.4133]
[1645025601075,14.56,99.23,99.131,23.4053]
[1645025601275,14.56,99.23,99.131,24.13000001]
[1645025601480,100.7,99.229,99.131,24.13000001]
[1645025601877,0.25,99.219,99.131,24.13000001]
[1645025608682,0.25,99.219,99.132,100.7]
[1645025608887,1.41102918,99.237,99.138,100.7]
[1645025609082,1.41102918,99.237,99.137,60.25]
[1645025609083,1.41102918,99.268,99.145,60.25]
[1645025609281,1.41102918,99.271,99.152,100.7]
[1645025609518,1.41102918,99.271,99.16,14.56]
[1645025609722,1.41102918,99.272,99.163,100.7]
[1645025609916,100.7,99.272,99.163,100.7]
[1645025610315,15.1179,99.26,99.163,100.7]
[1645025610516,15.1179,99.26,99.164,150.77]
[1645025610817,15.1179,99.26,99.164,100.7]
[1645025611419,15.1179,99.26,99.161,24.9223]
[1645025612016,15.1179,99.26,99.162,100.7]
[1645025612223,15.1179,99.26,99.161,24.9223]
[1645025612617,15.1179,99.26,99.162,0.72470001]
[1645025613018,15.1179,99.26,99.162,101.42470001]
[1645025613219,15.1179,99.26,99.162,109.46470001]
[1645025614921,15.1179,99.26,99.171,100.7]
[1645025615221,15.1179,99.26,99.17,15.1166]
[1645025615420,15.1179,99.26,99.171,24.1905]
[1645025615824,15.1179,99.26,99.171,24.91520001]
[1645025618623,100.7,99.259,99.171,24.91520001]
[1645025618821,15.1208,99.24,99.171,24.91520001]
[1645025619222,0.25,99.262,99.171,24.91520001]
[1645025620024,50.3999,99.27,99.171,24.91520001]
[1645025620324,50.3999,99.27,99.172,2.40485482]
[1645025620526,15.1168,99.27,99.172,2.40485482]
[1645025620751,15.1168,99.27,99.173,0.72470001]
[1645025621129,15.1168,99.27,99.174,127.49535482]
[1645025621326,0.25,99.26,99.174,127.49535482]
[1645025621524,0.25,99.26,99.175,2.40485482]
[1645025621731,1.41102918,99.275,99.181,100.7]
[1645025621927,1.41102918,99.29,99.185,100.7]
[1645025622128,1.41102918,99.304,99.202,60.25]
[1645025622327,1.41102918,99.311,99.206,60.25]
[1645025622530,1.41102918,99.311,99.223,60.25]
[1645025622727,1.41102918,99.311,99.227,160.95]
[1645025622926,1.41102918,99.325,99.231,160.95]
[1645025623130,1.41102918,99.325,99.25,15.103]
[1645025623326,1.41102918,99.342,99.251,100.7]
[1645025623526,1.41102918,99.345,99.253,100.7]
[1645025623729,1.41102918,99.348,99.252,48.0778]
[1645025623931,1.41102918,99.344,99.252,48.0778]
[1645025624128,1.41102918,99.339,99.252,48.0778]
[1645025624327,1.41102918,99.337,99.252,48.0778]
[1645025624526,15.1065,99.33,99.252,48.0778]
[1645025624728,100.7,99.329,99.252,48.0778]
[1645025624929,0.25,99.32,99.252,48.0778]
[1645025625529,15.3592,99.32,99.252,48.0778]
[1645025626737,15.3592,99.32,99.253,0.72470001]
[1645025628952,15.1109,99.3,99.253,0.72470001]
[1645025629752,15.1109,99.3,99.229,23.74540001]
[1645025629954,15.1095,99.31,99.229,23.74540001]
[1645025633059,1.41102918,99.317,99.231,60.25]
[1645025633362,1.41102918,99.322,99.24,115.26]
[1645025633561,1.41102918,99.336,99.241,48.9785]
[1645025633758,1.41102918,99.342,99.241,48.9785]
[1645025633961,1.41102918,99.334,99.241,48.9785]
[1645025634160,1.41102918,99.333,99.241,48.9785]
[1645025634361,1.41102918,99.33,99.241,48.9785]
[1645025634560,100.7,99.329,99.241,48.9785]
[1645025634761,100.7,99.319,99.241,48.9785]
[1645025635462,100.7,99.319,99.232,3.13581165]
[1645025635663,100.7,99.299,99.232,0.72470001]
[1645025636087,102.11102918,99.299,99.232,0.72470001]
[1645025636289,1.41102918,99.298,99.232,0.72470001]
[1645025636490,1.41102918,99.296,99.208,0.72470001]
[1645025636786,1.41102918,99.29,99.208,0.72470001]
[1645025636989,1.41102918,99.289,99.208,0.72470001]
[1645025637187,100.7,99.279,99.208,0.72470001]
[1645025637388,102.11102918,99.279,99.208,0.72470001]
[1645025637590,1.41102918,99.275,99.208,0.72470001]
[1645025637990,1.41102918,99.273,99.208,0.72470001]
[1645025638188,1.41102918,99.272,99.208,0.72470001]
[1645025638390,100.7,99.259,99.208,0.72470001]
[1645025638589,100.7,99.249,99.157,24.8855]
[1645025639789,15.1246,99.23,99.157,24.8855]
[1645025639991,15.1246,99.23,99.158,2.41111164]
[1645025640392,1.41102918,99.259,99.158,2.41111164]
[1645025640593,25.14002918,99.269,99.158,2.41111164]
[1645025640793,23.729,99.269,99.158,2.41111164]
[1645025640991,15.12,99.24,99.158,2.41111164]
[1645025641593,15.12,99.24,99.158,17.39301164]
[1645025641992,15.12,99.24,99.159,2.41111164]
[1645025644800,15.1184,99.25,99.159,110.93111164]
[1645025645200,100.7,99.264,99.161,100.7]
[1645025645499,0.25,99.254,99.16,2.41111164]
[1645025645698,0.25,99.254,99.162,2.41111164]
[1645025647702,2.50588295,99.253,99.145,2.41111164]
[1645025647906,102.92,99.249,99.134,2.8588667]
[1645025648103,3.63102918,99.239,99.134,2.8588667]
[1645025648305,5.34,99.254,99.134,2.8588667]
[1645025648306,102.92,99.229,99.134,2.8588667]
[1645025648503,1.41102918,99.228,99.134,2.8588667]
[1645025648906,1.41102918,99.226,99.134,2.8588667]
[1645025649306,3.91691213,99.225,99.134,2.8588667]
[1645025649504,100.7,99.219,99.077,50.07]
[1645025649905,100.7,99.189,99.067,2.41111164]
[1645025650106,107.2,99.189,99.067,2.41111164]
[1645025650306,6.5,99.189,99.067,2.41111164]
[1645025650507,50.4453,99.19,99.069,163.3550732]
[1645025650705,23.3685,99.189,99.071,100.7]
[1645025650904,11.84018429,99.189,99.071,100.7]
[1645025651104,11.84018429,99.189,99.072,2.4050732]
[1645025651306,100.7,99.188,99.073,100.7]
[1645025651508,11.84018429,99.189,99.075,100.7]
[1645025651911,15.1336,99.18,99.075,117.4964946]
[1645025652310,15.1336,99.18,99.076,2.4050732]
[1645025652710,15.1336,99.18,99.078,60.25]
[1645025652912,15.1336,99.18,99.079,160.95]
[1645025653112,15.1336,99.18,99.079,180.1515678]
[1645025653311,15.1336,99.18,99.08,100.7]
[1645025653711,15.1336,99.18,99.08,103.1050732]
[1645025657141,15.1336,99.18,99.08,2.4050732]
[1645025657338,15.1336,99.18,99.078,50.07]
[1645025657937,15.1336,99.18,99.076,50.07]
[1645025658138,15.1336,99.18,99.078,16.7964946]
[1645025658338,0.25,99.17,99.078,16.7964946]
[1645025658740,15.3814,99.17,99.078,16.7964946]
[1645025660042,100.7,99.169,99.078,16.7964946]
[1645025660243,100.7,99.169,99.07,24.0587]
[1645025660444,15.1348,99.15,99.07,24.0587]
[1645025661143,0.25,99.17,99.07,24.0587]
[1645025662945,15.3826,99.17,99.07,24.0587]
[1645025664947,15.3826,99.17,99.071,100.7]
[1645025665750,15.3826,99.17,99.07,24.0587]
[1645025666048,15.3826,99.17,99.072,2.4050732]
[1645025670953,15.1338,99.15,99.072,2.4050732]
[1645025671250,15.1338,99.15,99.07,24.0587]
[1645025672348,100.7,99.149,99.07,24.0587]
[1645025672552,15.1358,99.14,99.07,24.0587]
[1645025675951,15.1338,99.15,99.07,24.0587]
[1645025676152,15.1338,99.15,99.07,30.4387]
[1645025676451,23.8515,99.169,99.07,30.4387]
[1645025676452,23.8515,99.169,99.071,100.7]
[1645025676651,23.8515,99.169,99.07,30.4387]
[1645025677254,15.1323,99.16,99.07,24.0587]
[1645025678255,0.25,99.15,99.07,24.0587]
[1645025678656,15.3838,99.15,99.07,24.0587]
[1645025680460,0.25,99.15,99.07,24.0587]
[1645025681659,14.8825,99.16,99.07,24.0587]
[1645025685164,14.8825,99.16,99.071,100.7]
[1645025686065,22.7892,99.167,99.072,52.47511617]
[1645025686267,22.7892,99.167,99.073,100.7]
[1645025686466,1.41102918,99.178,99.079,211.02]
[1645025686666,1.41102918,99.179,99.091,100.7]
[1645025686867,1.41102918,99.193,99.093,100.7]
[1645025687066,23.4615,99.199,99.095,150.77]
[1645025687067,1.41102918,99.195,99.095,150.77]
[1645025687465,1.41102918,99.192,99.095,150.77]
[1645025687665,1.41102918,99.192,99.096,2.40511617]
[1645025687869,15.1279,99.19,99.096,2.40511617]
[1645025688890,1.41102918,99.189,99.096,2.40511617]
[1645025689090,15.1279,99.19,99.096,2.40511617]
[1645025690089,14.6279,99.19,99.096,2.40511617]
[1645025692794,15.3792,99.18,99.096,2.40511617]
[1645025692994,15.3792,99.18,99.092,47.84]